fUSD/lending_fUSD_20240714
["ID","MTS","AMOUNT","RATE_DAILY","PERIOD"]
[332044336,1720942247667,-500.0,0.00013753,2]
[332044337,1720942247676,-586.7,0.00013753,2]
[332044338,1720942247685,-500.0,0.00013753,2]
[332044339,1720942247693,-589.73,0.00013753,2]
[332044340,1720942247702,-813.87,0.00013753,2]
[332044341,1720942247711,-500.0,0.00013753,2]
[332044342,1720942247720,-500.0,0.00013753,2]
[332044343,1720942247733,-500.0,0.00013753,2]
[332044344,1720942247743,-500.0,0.00013753,2]
[332044345,1720942247754,-500.0,0.00013753,2]
[332044346,1720942247764,-500.0,0.00013753,2]
[332044347,1720942247775,-500.0,0.00013753,2]
[332044348,1720942247785,-500.0,0.00013753,2]
[332044349,1720942247795,-500.0,0.00013753,2]
[332044350,1720942247806,-500.0,0.00013753,2]
[332044351,1720942247816,-500.0,0.00013753,2]
[332044352,1720942247825,-500.0,0.00013753,2]
[332044353,1720942247836,-500.0,0.00013753,2]
[332044354,1720942247847,-638.90428589,0.00013753,2]
[332044355,1720942247857,-500.0,0.00013753,2]
[332044356,1720942247867,-500.0,0.00013753,2]
[332044357,1720942247876,-500.0,0.00013753,2]
[332044358,1720942247885,-500.0,0.00013753,2]
[332044359,1720942247894,-500.0,0.00013753,2]
[332044360,1720942247903,-500.0,0.00013753,2]
[332044361,1720942247913,-500.0,0.00013753,2]
[332044362,1720942247922,-500.0,0.00013753,2]
[332044363,1720942247932,-671.28,0.00013753,2]
[332044364,1720942247941,-500.0,0.00013753,2]
[332044365,1720942247950,-500.0,0.00013753,2]
[332044366,1720942247960,-500.0,0.00013753,2]
[332044367,1720942247971,-500.0,0.00013753,2]
[332044368,1720942247981,-500.0,0.00013753,2]
[332044369,1720942247991,-237.79692589,0.00013753,2]
[332044370,1720942248000,-500.0,0.00013753,2]
[332044371,1720942248013,-1137.71,0.00013753,2]
[332044372,1720942248023,-500.0,0.00013753,2]
[332044373,1720942248032,-500.0,0.00013753,2]
[332044374,1720942248042,-500.0,0.00013753,2]
[332044375,1720942248051,-500.0,0.00013753,2]
[332044376,1720942248061,-500.0,0.00013753,2]
[332044377,1720942248071,-747.56,0.00013753,2]
[332044378,1720942248080,-500.0,0.00013753,2]
[332044379,1720942248090,-500.0,0.00013753,2]
[332044380,1720942248101,-500.0,0.00013753,2]
[332044381,1720942248112,-500.0,0.00013753,2]
[332044382,1720942248121,-822.42,0.00013753,2]
[332044383,1720942248130,-635.64,0.00013753,2]
[332044384,1720942248140,-500.0,0.00013753,2]
[332044385,1720942248150,-355.90713353,0.00013753,2]
[332044386,1720942248159,-500.0,0.00013753,2]
[332044387,1720942248168,-503.49251894,0.00013753,2]
[332044388,1720942248178,-500.0,0.00013753,2]
[332044389,1720942248188,-500.0,0.00013753,2]
[332044390,1720942248198,-500.0,0.00013753,2]
[332044391,1720942248207,-1193.27,0.00013753,2]
[332044392,1720942248217,-500.0,0.00013753,2]
[332044393,1720942248229,-1079.52,0.00013753,2]
[332044394,1720942248239,-500.0,0.00013753,2]
[332044395,1720942248249,-500.0,0.00013753,2]
[332044396,1720942248258,-500.0,0.00013753,2]
[332044397,1720942248268,-500.0,0.00013753,2]
[332044398,1720942248278,-500.0,0.00013753,2]
[332044399,1720942248288,-542.08,0.00013753,2]
[332044400,1720942248297,-500.0,0.00013753,2]
[332044401,1720942248306,-500.0,0.00013753,2]
[332044402,1720942248316,-500.0,0.00013753,2]
[332044403,1720942248325,-500.0,0.00013753,2]
[332044404,1720942248334,-500.0,0.00013753,2]
[332044405,1720942248343,-500.0,0.00013753,2]
[332044406,1720942248353,-500.0,0.00013753,2]
[332044407,1720942248362,-500.0,0.00013753,2]
[332044408,1720942248371,-500.0,0.00013753,2]
[332044409,1720942248380,-500.0,0.00013753,2]
[332044410,1720942248390,-1077.55,0.00013753,2]
[332044411,1720942248399,-500.0,0.00013753,2]
[332044412,1720942248409,-964.35,0.00013753,2]
[332044413,1720942248419,-500.0,0.00013753,2]
[332044414,1720942248428,-500.0,0.00013753,2]
[332044415,1720942248438,-358.95,0.00013753,2]
[332044416,1720942248448,-394.93223362,0.00013753,2]
[332044417,1720942248457,-500.0,0.00013753,2]
[332044418,1720942248466,-604.88,0.00013753,2]
[332044419,1720942248477,-2131.66,0.00013753,2]
[332044420,1720942248487,-554.09559937,0.00013753,2]
[332044421,1720942248496,-500.0,0.00013753,2]
[332044422,1720942248505,-500.0,0.00013753,2]
[332044423,1720942248515,-950.53,0.00013753,2]
[332044424,1720942248524,-500.0,0.00013753,2]
[332044425,1720942248534,-1580.61,0.00013753,2]
[332044426,1720942248543,-500.0,0.00013753,2]
[332044427,1720942248553,-642.41,0.00013753,2]
[332044428,1720942248563,-500.0,0.00013753,2]
[332044429,1720942248572,-1000.0,0.00013753,2]
[332044430,1720942248582,-500.0,0.00013753,2]
[332044431,1720942248591,-306.2646133,0.00013753,2]
[332044432,1720942248601,-500.0,0.00013753,2]
[332044433,1720942248611,-500.0,0.00013753,2]
[332044434,1720942248621,-500.0,0.00013753,2]
[332044435,1720942248630,-500.0,0.00013753,2]
[332044436,1720942248640,-1001.3,0.00013753,2]
[332044437,1720942248649,-500.0,0.00013753,2]
[332044438,1720942248659,-500.0,0.00013753,2]
[332044439,1720942248669,-500.0,0.00013753,2]
[332044440,1720942248679,-500.0,0.00013753,2]
[332044441,1720942248688,-602.55,0.00013753,2]
[332044442,1720942248697,-695.43,0.00013753,2]
[332044443,1720942248707,-500.0,0.00013753,2]
[332044444,1720942248716,-500.0,0.00013753,2]
[332044445,1720942248726,-1382.1,0.00013753,2]
[332044446,1720942248736,-500.0,0.00013753,2]
[332044447,1720942248746,-500.0,0.00013753,2]
[332044448,1720942248756,-500.0,0.00013753,2]
[332044449,1720942248765,-1950.35,0.00013753,2]
[332044450,1720942248775,-500.0,0.00013753,2]
[332044451,1720942248785,-500.0,0.00013753,2]
[332044452,1720942248794,-768.25,0.00013753,2]
[332044453,1720942248804,-500.0,0.00013753,2]
[332044454,1720942248813,-500.0,0.00013753,2]
[332044455,1720942248822,-1121.28,0.00013753,2]
[332044456,1720942248832,-500.0,0.00013753,2]
[332044457,1720942248842,-870.82,0.00013753,2]
[332044458,1720942248851,-500.0,0.00013753,2]
[332044459,1720942248861,-500.0,0.00013753,2]
[332044460,1720942248870,-500.0,0.00013753,2]
[332044461,1720942248880,-770.79,0.00013753,2]
[332044462,1720942248889,-500.0,0.00013753,2]
[332044463,1720942248899,-239.34621671,0.00013753,2]
[332044464,1720942248908,-500.0,0.00013753,2]
[332044465,1720942248918,-690.16,0.00013753,2]
[332044466,1720942248927,-500.0,0.00013753,2]
[332044467,1720942248936,-942.52,0.00013753,2]
[332044468,1720942248946,-819.36,0.00013753,2]
[332044469,1720942248956,-1183.77,0.00013753,2]
[332044470,1720942248965,-500.0,0.00013753,2]
[332044471,1720942248975,-714.85,0.00013753,2]
[332044472,1720942248985,-500.0,0.00013753,2]
[332044473,1720942248995,-500.0,0.00013753,2]
[332044474,1720942249004,-594.24,0.00013753,2]
[332044475,1720942249018,-500.0,0.00013753,2]
[332044476,1720942249027,-500.0,0.00013753,2]
[332044477,1720942249037,-500.0,0.00013753,2]
[332044478,1720942249047,-500.0,0.00013753,2]
[332044479,1720942249059,-500.0,0.00013753,2]
[332044480,1720942249068,-500.0,0.00013753,2]
[332044481,1720942249078,-500.0,0.00013753,2]
[332044482,1720942249089,-1262.53,0.00013753,2]
[332044483,1720942249099,-500.0,0.00013753,2]
[332044484,1720942249108,-500.0,0.00013753,2]
[332044485,1720942249118,-1193.02,0.00013753,2]
[332044486,1720942249128,-500.0,0.00013753,2]
[332044487,1720942249137,-1329.4,0.00013753,2]
[332044488,1720942249147,-660.98,0.00013753,2]
[332044489,1720942249157,-500.0,0.00013753,2]
[332044490,1720942249167,-500.0,0.00013753,2]
[332044491,1720942249177,-500.0,0.00013753,2]
[332044492,1720942249187,-500.0,0.00013753,2]
[332044493,1720942249196,-500.0,0.00013753,2]
[332044494,1720942249206,-500.0,0.00013753,2]
[332044495,1720942249216,-500.0,0.00013753,2]
[332044496,1720942249227,-2306.15,0.00013753,2]
[332044497,1720942249237,-500.0,0.00013753,2]
[332044498,1720942249246,-715.02,0.00013753,2]
[332044499,1720942249256,-500.0,0.00013753,2]
[332044500,1720942249265,-500.0,0.00013753,2]
[332044501,1720942249275,-500.0,0.00013753,2]
[332044502,1720942249285,-500.0,0.00013753,2]
[332044503,1720942249294,-500.0,0.00013753,2]
[332044504,1720942249304,-730.84,0.00013753,2]
[332044505,1720942249314,-500.0,0.00013753,2]
[332044506,1720942249324,-1739.63,0.00013753,2]
[332044507,1720942249334,-500.0,0.00013753,2]
[332044508,1720942249343,-500.0,0.00013753,2]
[332044509,1720942249353,-500.0,0.00013753,2]
[332044510,1720942249363,-1612.72,0.00013753,2]
[332044511,1720942249373,-500.0,0.00013753,2]
[332044512,1720942249382,-500.0,0.00013753,2]
[332044513,1720942249392,-500.0,0.00013753,2]
[332044514,1720942249401,-1718.95,0.00013753,2]
[332044515,1720942249411,-842.66,0.00013753,2]
[332044516,1720942249420,-500.0,0.00013753,2]
[332044517,1720942249430,-1745.81,0.00013753,2]
[332044518,1720942249440,-1239.42,0.00013753,2]
[332044519,1720942249450,-500.0,0.00013753,2]
[332044520,1720942249459,-500.0,0.00013753,2]
[332044521,1720942249469,-382.67046651,0.00013753,2]
[332044522,1720942249479,-500.0,0.00013753,2]
[332044523,1720942249489,-500.0,0.00013753,2]
[332044524,1720942249498,-500.0,0.00013753,2]
[332044525,1720942249508,-1550.79,0.00013753,2]
[332044526,1720942249518,-500.0,0.00013753,2]
[332044527,1720942249528,-1218.97,0.00013753,2]
[332044528,1720942249538,-500.0,0.00013753,2]
[332044529,1720942249547,-500.0,0.00013753,2]
[332044530,1720942249557,-500.0,0.00013753,2]
[332044531,1720942249567,-500.0,0.00013753,2]
[332044532,1720942249577,-500.0,0.00013753,2]
[332044533,1720942249587,-500.0,0.00013753,2]
[332044534,1720942249597,-869.73,0.00013753,2]
[332044535,1720942249607,-500.0,0.00013753,2]
[332044536,1720942249617,-1130.31,0.00013753,2]
[332044537,1720942249626,-628.18,0.00013753,2]
[332044538,1720942249636,-500.0,0.00013753,2]
[332044539,1720942249646,-1557.09,0.00013753,2]
[332044540,1720942249655,-500.0,0.00013753,2]
[332044541,1720942249665,-500.0,0.00013753,2]
[332044542,1720942249675,-500.0,0.00013753,2]
[332044543,1720942249686,-500.0,0.00013753,2]
[332044544,1720942249697,-500.0,0.00013753,2]
[332044545,1720942249707,-500.33,0.00013753,2]
[332044546,1720942249716,-500.0,0.00013753,2]
[332044547,1720942249726,-846.37,0.00013753,2]
[332044548,1720942249736,-500.0,0.00013753,2]
[332044549,1720942249746,-500.0,0.00013753,2]
[332044550,1720942249756,-500.0,0.00013753,2]
[332044551,1720942249766,-500.0,0.00013753,2]
[332044552,1720942249776,-2196.01,0.00013753,2]
[332044553,1720942249785,-500.0,0.00013753,2]
[332044554,1720942249796,-500.0,0.00013753,2]
[332044555,1720942249806,-500.0,0.00013753,2]
[332044556,1720942249815,-500.0,0.00013753,2]
[332044557,1720942249825,-500.0,0.00013753,2]
[332044558,1720942249835,-500.0,0.00013753,2]
[332044559,1720942249845,-500.0,0.00013753,2]
[332044560,1720942249855,-500.0,0.00013753,2]
[332044561,1720942249866,-500.0,0.00013753,2]
[332044562,1720942249876,-947.73,0.00013753,2]
[332044563,1720942249886,-500.0,0.00013753,2]
[332044564,1720942249899,-500.0,0.00013753,2]
[332044565,1720942249909,-500.0,0.00013753,2]
[332044566,1720942249919,-704.59,0.00013753,2]
[332044567,1720942249928,-650.94,0.00013753,2]
[332044568,1720942249938,-500.0,0.00013753,2]
[332044569,1720942249947,-500.0,0.00013753,2]
[332044570,1720942249957,-500.0,0.00013753,2]
[332044571,1720942249968,-500.0,0.00013753,2]
[332044572,1720942249979,-500.0,0.00013753,2]
[332044573,1720942249988,-500.0,0.00013753,2]
[332044574,1720942249998,-500.0,0.00013753,2]
[332044575,1720942250011,-463.13301054,0.00013753,2]
[332044576,1720942250022,-500.0,0.00013753,2]
[332044577,1720942250031,-591.67,0.00013753,2]
[332044578,1720942250041,-500.0,0.00013753,2]
[332044579,1720942250051,-500.0,0.00013753,2]
[332044580,1720942250062,-500.0,0.00013753,2]
[332044581,1720942250071,-500.0,0.00013753,2]
[332044582,1720942250083,-500.0,0.00013753,2]
[332044583,1720942250093,-500.12,0.00013753,2]
[332044584,1720942250103,-1562.18,0.00013753,2]
[332044585,1720942250112,-500.0,0.00013753,2]
[332044586,1720942250122,-500.0,0.00013753,2]
[332044587,1720942250131,-500.0,0.00013753,2]
[332044588,1720942250141,-500.0,0.00013753,2]
[332044589,1720942250150,-500.0,0.00013753,2]
[332044590,1720942250160,-500.0,0.00013753,2]
[332044591,1720942250170,-500.0,0.00013753,2]
[332044592,1720942250180,-500.0,0.00013753,2]
[332044593,1720942250190,-500.0,0.00013753,2]
[332044594,1720942250200,-2244.93,0.00013753,2]
[332044595,1720942250211,-291.47583836,0.00013753,2]
[332044596,1720942250222,-625.0,0.00013753,2]
[332044597,1720942250233,-500.0,0.00013753,2]
[332044598,1720942250243,-574.54,0.00013753,2]
[332044599,1720942250255,-500.0,0.00013753,2]
[332044600,1720942250264,-500.0,0.00013753,2]
[332044601,1720942250274,-500.0,0.00013753,2]
[332044602,1720942250283,-1359.02,0.00013753,2]
[332044603,1720942250293,-500.0,0.00013753,2]
[332044604,1720942250303,-500.0,0.00013753,2]
[332044605,1720942250313,-500.0,0.00013753,2]
[332044606,1720942250322,-500.0,0.00013753,2]
[332044607,1720942250332,-500.0,0.00013753,2]
[332044608,1720942250342,-813.43,0.00013753,2]
[332044609,1720942250352,-682.17,0.00013753,2]
[332044610,1720942250362,-500.0,0.00013753,2]
[332044611,1720942250371,-828.19,0.00013753,2]
[332044612,1720942250381,-1373.71,0.00013753,2]
[332044613,1720942250390,-607.25,0.00013753,2]
[332044614,1720942250400,-707.5,0.00013753,2]
[332044615,1720942250409,-500.0,0.00013753,2]
[332044616,1720942250419,-1024.42,0.00013753,2]
[332044617,1720942250429,-500.0,0.00013753,2]
[332044618,1720942250439,-500.0,0.00013753,2]
[332044619,1720942250448,-500.0,0.00013753,2]
[332044620,1720942250458,-500.0,0.00013753,2]
[332044621,1720942250468,-500.0,0.00013753,2]
[332044622,1720942250478,-789.23,0.00013753,2]
[332044623,1720942250487,-500.0,0.00013753,2]
[332044624,1720942250497,-500.0,0.00013753,2]
[332044625,1720942250507,-805.03,0.00013753,2]
[332044626,1720942250516,-565.93,0.00013753,2]
[332044627,1720942250526,-578.63,0.00013753,2]
[332044628,1720942250535,-1277.4,0.00013753,2]
[332044629,1720942250545,-763.16,0.00013753,2]
[332044630,1720942250554,-500.0,0.00013753,2]
[332044631,1720942250564,-500.0,0.00013753,2]
[332044632,1720942250573,-1223.49,0.00013753,2]
[332044633,1720942250583,-997.24,0.00013753,2]
[332044634,1720942250592,-1223.05,0.00013753,2]
[332044635,1720942250602,-693.59,0.00013753,2]
[332044636,1720942250611,-500.0,0.00013753,2]
[332044637,1720942250621,-500.0,0.00013753,2]
[332044638,1720942250631,-500.0,0.00013753,2]
[332044639,1720942250640,-686.17,0.00013753,2]
[332044640,1720942250650,-500.0,0.00013753,2]
[332044641,1720942250659,-500.0,0.00013753,2]
[332044642,1720942250668,-1084.92,0.00013753,2]
[332044643,1720942250678,-880.57,0.00013753,2]
[332044644,1720942250687,-500.0,0.00013753,2]
[332044645,1720942250697,-1246.78,0.00013753,2]
[332044646,1720942250707,-500.0,0.00013753,2]
[332044647,1720942250716,-500.0,0.00013753,2]
[332044648,1720942250728,-517.28,0.00013753,2]
[332044649,1720942250907,-573.84,0.00013753,2]
[332044650,1720942250933,-500.0,0.00013753,2]
[332044651,1720942250942,-1357.43,0.00013753,2]
[332044652,1720942250951,-500.0,0.00013753,2]
[332044653,1720942250961,-500.0,0.00013753,2]
[332044654,1720942250971,-500.0,0.00013753,2]
[332044655,1720942250981,-500.0,0.00013753,2]
[332044656,1720942250990,-654.56,0.00013753,2]
[332044657,1720942250999,-500.0,0.00013753,2]
[332044658,1720942251010,-500.0,0.00013753,2]
[332044659,1720942251020,-302.27735574,0.00013753,2]
[332044660,1720942251029,-1144.62,0.00013753,2]
[332044661,1720942251038,-500.0,0.00013753,2]
[332044662,1720942251047,-500.0,0.00013753,2]
[332044663,1720942251058,-1255.22,0.00013753,2]
[332044664,1720942251067,-500.0,0.00013753,2]
[332044665,1720942251076,-1662.21,0.00013753,2]
[332044666,1720942251087,-500.0,0.00013753,2]
[332044667,1720942251096,-500.0,0.00013753,2]
[332044668,1720942251107,-500.0,0.00013753,2]
[332044669,1720942251118,-500.0,0.00013753,2]
[332044670,1720942251128,-500.0,0.00013753,2]
[332044671,1720942251139,-500.0,0.00013753,2]
[332044672,1720942251150,-500.0,0.00013753,2]
[332044673,1720942251159,-500.0,0.00013753,2]
[332044674,1720942251168,-1657.58,0.00013753,2]
[332044675,1720942251179,-500.0,0.00013753,2]
[332044676,1720942251188,-1018.78,0.00013753,2]
[332044677,1720942251197,-500.0,0.00013753,2]
[332044678,1720942251206,-500.0,0.00013753,2]
[332044679,1720942251215,-2326.8,0.00013753,2]
[332044680,1720942251226,-1745.09,0.00013753,2]
[332044681,1720942251235,-786.63,0.00013753,2]
[332044682,1720942251244,-500.0,0.00013753,2]
[332044683,1720942251254,-1039.56,0.00013753,2]
[332044684,1720942251263,-303.70497877,0.00013753,2]
[332044685,1720942251272,-500.0,0.00013753,2]
[332044686,1720942251281,-500.0,0.00013753,2]
[332044687,1720942251290,-500.0,0.00013753,2]
[332044688,1720942251300,-1675.85,0.00013753,2]
[332044689,1720942251309,-611.27,0.00013753,2]
[332044690,1720942251319,-1222.98,0.00013753,2]
[332044691,1720942251328,-500.0,0.00013753,2]
[332044692,1720942251339,-500.0,0.00013753,2]
[332044693,1720942251350,-862.3,0.00013753,2]
[332044694,1720942251362,-708.13,0.00013753,2]
[332044695,1720942251371,-500.0,0.00013753,2]
[332044696,1720942251381,-500.0,0.00013753,2]
[332044697,1720942251390,-500.0,0.00013753,2]
[332044698,1720942251400,-500.0,0.00013753,2]
[332044699,1720942251411,-539.51,0.00013753,2]
[332044700,1720942251421,-500.0,0.00013753,2]
[332044701,1720942251431,-500.0,0.00013753,2]
[332044702,1720942251442,-500.0,0.00013753,2]
[332044703,1720942251452,-500.0,0.00013753,2]
[332044704,1720942251462,-594.42,0.00013753,2]
[332044705,1720942251472,-500.0,0.00013753,2]
[332044706,1720942251481,-1167.02,0.00013753,2]
[332044707,1720942251490,-629.91,0.00013753,2]
[332044708,1720942251500,-500.0,0.00013753,2]
[332044709,1720942251510,-606.95,0.00013753,2]
[332044710,1720942251519,-500.0,0.00013753,2]
[332044711,1720942251529,-500.0,0.00013753,2]
[332044712,1720942251540,-1350.7,0.00013753,2]
[332044713,1720942251550,-500.0,0.00013753,2]
[332044714,1720942251560,-699.01,0.00013753,2]
[332044715,1720942251570,-500.0,0.00013753,2]
[332044716,1720942251580,-500.0,0.00013753,2]
[332044717,1720942251590,-500.0,0.00013753,2]
[332044718,1720942251599,-500.0,0.00013753,2]
[332044719,1720942251609,-500.0,0.00013753,2]
[332044720,1720942251618,-500.0,0.00013753,2]
[332044721,1720942251627,-569.64,0.00013753,2]
[332044722,1720942251637,-500.0,0.00013753,2]
[332044723,1720942251647,-616.95,0.00013753,2]
[332044724,1720942251656,-500.0,0.00013753,2]
[332044725,1720942251666,-858.57,0.00013753,2]
[332044726,1720942251676,-500.0,0.00013753,2]
[332044727,1720942251686,-1377.67,0.00013753,2]
[332044728,1720942251696,-500.0,0.00013753,2]
[332044729,1720942251706,-500.0,0.00013753,2]
[332044730,1720942251716,-500.0,0.00013753,2]
[332044731,1720942251727,-500.0,0.00013753,2]
[332044732,1720942251738,-541.42,0.00013753,2]
[332044733,1720942251747,-500.0,0.00013753,2]
[332044734,1720942251757,-500.0,0.00013753,2]
[332044735,1720942251766,-500.0,0.00013753,2]
[332044736,1720942251775,-500.0,0.00013753,2]
[332044737,1720942251785,-500.0,0.00013753,2]
[332044738,1720942251794,-500.0,0.00013753,2]
[332044739,1720942251804,-940.75,0.00013753,2]
[332044740,1720942251813,-500.0,0.00013753,2]
[332044741,1720942251823,-500.0,0.00013753,2]
[332044742,1720942251832,-1064.23,0.00013753,2]
[332044743,1720942251841,-1877.29,0.00013753,2]
[332044744,1720942251850,-500.0,0.00013753,2]
[332044745,1720942251859,-643.31,0.00013753,2]
[332044746,1720942251869,-1900.55,0.00013753,2]
[332044747,1720942251878,-500.0,0.00013753,2]
[332044748,1720942251890,-500.0,0.00013753,2]
[332044749,1720942251901,-1065.31,0.00013753,2]
[332044750,1720942251911,-917.89,0.00013753,2]
[332044751,1720942251922,-500.0,0.00013753,2]
[332044752,1720942251932,-1854.76,0.00013753,2]
[332044753,1720942251942,-500.0,0.00013753,2]
[332044754,1720942251951,-500.0,0.00013753,2]
[332044755,1720942251962,-571.03,0.00013753,2]
[332044756,1720942251975,-500.0,0.00013753,2]
[332044757,1720942251984,-500.0,0.00013753,2]
[332044758,1720942251993,-500.0,0.00013753,2]
[332044759,1720942252004,-500.0,0.00013753,2]
[332044760,1720942252018,-500.0,0.00013753,2]
[332044761,1720942252028,-500.0,0.00013753,2]
[332044762,1720942252037,-546.93,0.00013753,2]
[332044763,1720942252047,-500.0,0.00013753,2]
[332044764,1720942252058,-1033.31,0.00013753,2]
[332044765,1720942252067,-500.0,0.00013753,2]
[332044766,1720942252077,-1443.94,0.00013753,2]
[332044767,1720942252087,-500.0,0.00013753,2]
[332044768,1720942252097,-500.0,0.00013753,2]
[332044769,1720942252107,-500.0,0.00013753,2]
[332044770,1720942252117,-500.0,0.00013753,2]
[332044771,1720942252126,-500.0,0.00013753,2]
[332044772,1720942252136,-500.0,0.00013753,2]
[332044773,1720942252146,-500.0,0.00013753,2]
[332044774,1720942252156,-500.0,0.00013753,2]
[332044775,1720942252167,-500.0,0.00013753,2]
[332044776,1720942252177,-500.0,0.00013753,2]
[332044777,1720942252187,-939.48,0.00013753,2]
[332044778,1720942252196,-690.83,0.00013753,2]
[332044779,1720942252206,-1434.02,0.00013753,2]
[332044780,1720942252216,-500.0,0.00013753,2]
[332044781,1720942252225,-507.26,0.00013753,2]
[332044782,1720942252234,-500.0,0.00013753,2]
[332044783,1720942252244,-500.0,0.00013753,2]
[332044784,1720942252254,-500.0,0.00013753,2]
[332044785,1720942252264,-500.0,0.00013753,2]
[332044786,1720942252274,-500.0,0.00013753,2]
[332044787,1720942252283,-500.0,0.00013753,2]
[332044788,1720942252292,-500.0,0.00013753,2]
[332044789,1720942252302,-500.0,0.00013753,2]
[332044790,1720942252311,-758.17,0.00013753,2]
[332044791,1720942252321,-500.0,0.00013753,2]
[332044792,1720942252331,-500.0,0.00013753,2]
[332044793,1720942252340,-500.0,0.00013753,2]
[332044794,1720942252349,-500.0,0.00013753,2]
[332044795,1720942252359,-500.0,0.00013753,2]
[332044796,1720942252368,-667.95,0.00013753,2]
[332044797,1720942252377,-500.0,0.00013753,2]
[332044798,1720942252386,-500.0,0.00013753,2]
[332044799,1720942252396,-500.0,0.00013753,2]
[332044800,1720942252405,-500.0,0.00013753,2]
[332044801,1720942252415,-656.83,0.00013753,2]
[332044802,1720942252424,-500.0,0.00013753,2]
[332044803,1720942252434,-500.0,0.00013753,2]
[332044804,1720942252444,-1121.81,0.00013753,2]
[332044805,1720942252453,-1360.96,0.00013753,2]
[332044806,1720942252463,-1333.12,0.00013753,2]
[332044807,1720942252472,-1041.25,0.00013753,2]
[332044808,1720942252482,-500.0,0.00013753,2]
[332044809,1720942252491,-500.0,0.00013753,2]
[332044810,1720942252501,-500.0,0.00013753,2]
[332044811,1720942252510,-1587.48,0.00013753,2]
[332044812,1720942252519,-721.7,0.00013753,2]
[332044813,1720942252529,-1189.67,0.00013753,2]
[332044814,1720942252538,-500.0,0.00013753,2]
[332044815,1720942252548,-500.0,0.00013753,2]
[332044816,1720942252558,-500.0,0.00013753,2]
[332044817,1720942252567,-2094.35,0.00013753,2]
[332044818,1720942252576,-500.0,0.00013753,2]
[332044819,1720942252586,-500.0,0.00013753,2]
[332044820,1720942252596,-500.0,0.00013753,2]
[332044821,1720942252605,-1454.73,0.00013753,2]
[332044822,1720942252615,-500.0,0.00013753,2]
[332044823,1720942252624,-500.0,0.00013753,2]
[332044824,1720942252634,-500.0,0.00013753,2]
[332044825,1720942252644,-1367.52,0.00013753,2]
[332044826,1720942252653,-500.0,0.00013753,2]
[332044827,1720942252663,-725.46,0.00013753,2]
[332044828,1720942252672,-564.4,0.00013753,2]
[332044829,1720942252682,-1181.0,0.00013753,2]
[332044830,1720942252691,-500.0,0.00013753,2]
[332044831,1720942252701,-500.0,0.00013753,2]
[332044832,1720942252710,-500.0,0.00013753,2]
[332044833,1720942252719,-500.0,0.00013753,2]
[332044834,1720942252729,-500.0,0.00013753,2]
[332044835,1720942252739,-500.0,0.00013753,2]